Cogmind - Beta 13 @@@ ROGUE MODE // 2024.04.12 @ 15:48:04 Player: JTMusky Result: Destroyed by G-34 Mercenary with Small Laser Performance ------------- Evolutions (0) 0 Regions Visited (1) 200 Robots Destroyed (21) 105 Value Destroyed (367) 367 Prototype IDs (2) 40 Alien Tech Used (0) 0 Bonus (0) 0 TOTAL SCORE: 712 Bonus ------- None Cogmind --------- Core Integrity 0/250 Matter 300/300 Energy 100/100 System Corruption 0% Temperature Cool (6) Movement Rolling (95) Ox1 Location -10/Materials Parts ------- > --- POWER (1) -------- (None) > --- PROPULSION (2) --- Wheel > --- UTILITY (2) ------ Medium Storage Unit Improved Terrain Scanner > --- WEAPON (2) ------- Heavy Hammer > --- INVENTORY (10) --- Light Ion Engine Small Storage Unit Small Matter Pod (50) Medium Matter Pod (100) Terrain Scan Processor Seismic Detector Tractor Beam Grenade Launcher Heavy Hammer Peak State ------------ > --- POWER ------------ Ion Engine > --- PROPULSION ------- Light Treads Light Treads > --- UTILITY ---------- Huge Storage Unit Improved Terrain Scanner > --- WEAPON ----------- Heavy Hammer Heavy Hammer > --- INVENTORY -------- Light Ion Engine Small Matter Pod Medium Matter Pod Seismic Detector Tractor Beam Assault Rifle Grenade Launcher [Rating: 11] Favorites ----------- Power Ion Engine Engine Ion Engine Propulsion Light Treads Treads Light Treads Wheel Wheel Hover Unit Hover Unit Utility Improved Terrain Scanner Device Improved Terrain Scanner Storage Small Storage Unit Weapon Assault Rifle Energy Gun Small Laser Ballistic Gun Assault Rifle Launcher Grenade Launcher Special Weapon Mining Laser Impact Weapon Heavy Hammer Build | -11 -10 ------- Run | Yrd Mat Slots Evolved . | . . Power . | . . Propulsion . | . . Utility . | . . Weapon . | . . Parts Attached 24 | 14 10 Power 2 | 2 . Engine 2 | 2 . Core . | . . Reactor . | . . Propulsion 4 | 2 2 Treads 2 | 2 . Leg . | . . Wheel 1 | . 1 Hover 1 | . 1 Flight . | . . Utility 8 | 5 3 Device 4 | 4 . Storage 4 | 1 3 Processor . | . . Hackware . | . . Protection . | . . Artifact . | . . Weapon 10 | 5 5 Energy Gun 1 | 1 . Energy Cannon . | . . Ballistic Gun 4 | 3 1 Ballistic Cannon . | . . Launcher 2 | . 2 Special Weapon 1 | 1 . Impact Weapon 2 | . 2 Slashing Weapon . | . . Piercing Weapon . | . . Special Melee Weapon . | . . Unidentified Prototypes . | . . Parts Lost 7 | . 7 Power 1 | . 1 Propulsion 3 | . 3 Utility . | . . Weapon 3 | . 3 Highest Loss Streak 2 | . 2 To Critical Strikes . | . . Average Slot Usage (%) 83 | . 83 Engine 13 | . 13 Treads 14 | . 14 Hover 2 | . 2 Device 14 | . 14 Storage 14 | . 14 Ballistic Gun 3 | . 3 Launcher 8 | . 8 Special Weapon 1 | . 1 Impact Weapon 10 | . 10 Naked Turns . | . . Heaviest Build 92 | 14 92 Greatest Support 40 | 40 40 Greatest Overweight (x) 6 | 1 6 Average Overweight (x) . | . 1 Largest Inventory Capacity 25 | 8 25 Average Capacity 10 | 7 12 Most Carried 9 | 8 9 Average Carried 7 | 6 8 Final Capacity 10 | 8 10 Final Carried 9 | 7 9 Class Distribution -------------------- 100% | Mutant Dominant Class ---------------- Mutant | -10/Materials Resources | -11 -10 ----------- Run | Yrd Mat Matter Collected 700 | 447 253 Remotely 49 | 49 . Salvage Created 467 | 189 278 Parts 36 | 16 20 Haulers Intercepted . | . . Recyclers Shooed 1 | 1 . Parts Field Recycled . | . . Retrieved Matter . | . . Parts Self-Destructed . | . . Prevented . | . . Kills | -11 -10 ------- Run | Yrd Mat Combat Hostiles Destroyed 8 | . 8 Melee 3 | . 3 Guns 1 | . 1 AOE 3 | . 3 Classes Destroyed 6 | 3 3 Worker 4 | 2 2 Builder 3 | . 3 Tunneler 4 | 4 . Recycler 1 | 1 . Operator 1 | . 1 Grunt 8 | . 8 Best Kill Streak 4 | 1 4 Combat Bots Only 2 | . 2 Max Kills in Single Turn 1 | 1 1 Gunslinging . | . . Exploded 1 | . 1 Melee 1 | . 1 Uniques/NPCs Destroyed . | . . Combat | -11 -10 -------- Run | Yrd Mat Hostile Shots Fired 105 | . 105 Missed 26 | . 26 Damage Taken 981 | . 981 Core 251 | . 251 Absorbed by Shields . | . . Core Remaining (%) 100 | 100 . Volleys Fired 59 | 26 33 Largest 2 | 2 1 Hottest 120 | 120 100 Shots Fired 77 | 44 33 Gun 54 | 35 19 Cannon . | . . Launcher 8 | . 8 Special 15 | 9 6 Kinetic 49 | 30 19 Thermal 20 | 14 6 Explosive 8 | . 8 Electromagnetic . | . . Robot Hit Streak 5 | 3 5 Robot Miss Streak 4 | 4 2 Penetration Max . | . . Secondary Targets . | . . Shots Hit Robots 43 | 13 30 Core Hits 35 | 9 26 Critical Kills 2 | 1 1 Critical Parts Destroyed 2 | . 2 Critical Strikes 4 | 1 3 Destroy 1 | 1 . Smash 3 | . 3 Melee Attacks 31 | . 31 Impact 31 | . 31 Slashing . | . . Piercing . | . . Sneak Attacks 3 | . 3 Combat Hostiles . | . . Follow-up Attacks . | . . Damage Inflicted 1412 | 132 1280 Guns 271 | 132 139 Cannons . | . . Explosions 433 | . 433 Melee 688 | . 688 Ramming 20 | . 20 Kinetic 259 | 120 139 Thermal 12 | 12 . Explosive 433 | . 433 Electromagnetic . | . . Impact 688 | . 688 Slashing . | . . Piercing . | . . Highest Corruption . | . . Average Corruption . | . . Corruption Purged . | . . Corruption Blocked . | . . Overload Shots . | . . Overflow Damage 104 | . 104 Projectiles . | . . Explosions . | . . Melee 104 | . 104 Knockbacks 4 | . 4 Impact 4 | . 4 Kinetic . | . . Secondary . | . . Self-Inflicted Damage . | . . Shots . | . . Rammed 13 | . 13 Targets Rammed 14 | . 14 Kicked . | . . Crushed 1 | . 1 Highest Temperature 100 | 40 100 Average Temperature 21 | 12 31 Received Heat Transfer 585 | . 585 Siege Activations . | . . Robots Corrupted . | . . Combat Hostiles . | . . Parts Fried 3 | . 3 Impact Corruptions 4 | . 4 Robots Melted . | . . Combat Hostiles . | . . Parts Melted . | . . Heat Transferred 25 | 25 . Parts Sabotaged . | . . Parts Stolen . | . . Parts Stripped . | . . Power Chain Reactions . | . . Alert | -11 -10 ------- Run | Yrd Mat Peak Influence 171 | 30 171 Initial 3 | . 3 Average 35 | 8 58 Maximum Alert Level . | . . Low Security (%) 100 | 100 100 Level 1 . | . . Level 2 . | . . Level 3 . | . . Level 4 . | . . Level 5 . | . . High Security . | . . Max Security . | . . Squads Dispatched 2 | . 2 Investigation 1 | . 1 Extermination . | . . Reinforcement 1 | . 1 Assault . | . . Garrison . | . . Intercept . | . . Searches Triggered . | . . Construction Impeded . | . . Haulers Reinforced . | . . Active Scanning Responses . | . . Cargo Convoy Interrupts . | . . Stealth | -11 -10 --------- Run | Yrd Mat Distress Signals 2 | . 2 Communications Jammed . | . . Distress Signals . | . . Times Spotted 15 | . 15 Peak Tracking Total 2 | . 2 Tactical Retreats 1 | . 1 Traps | -11 -10 ------- Run | Yrd Mat Traps Triggered 1 | . 1 Indirectly . | . . Trap Hack Attempts . | . . Triggered . | . . Disarmed . | . . Reprogrammed 1 | . 1 Reused . | . . Traps Extracted . | . . Installed . | . . Triggered . | . . Machines | -11 -10 ---------- Run | Yrd Mat Machines Disabled . | . . Max in Single Turn . | . . Machines Repaired . | . . Machines Dismantled . | . . Machines Sabotaged . | . . Overloaded Fab Kills . | . . Hacking | -11 -10 --------- Run | Yrd Mat Machines Accessed 2 | . 2 Terminals 2 | . 2 Fabricators . | . . Repair Stations . | . . Recycling Units . | . . Scanalyzers . | . . Garrison Access . | . . Total Hacks 5 | . 5 Successful 3 | . 3 Failed 2 | . 2 Catastrophic . | . . Database Lockouts . | . . Manual 5 | . 5 Terminals 5 | . 5 Fabricators . | . . Repair Stations . | . . Recycling Units . | . . Scanalyzers . | . . Garrison Access . | . . Terminal Hacks 3 | . 3 Prototype ID Bank 1 | . 1 Terminal Index 1 | . 1 Reprogram Traps 1 | . 1 Fabricator Hacks . | . . Repair Station Hacks . | . . Recycling Unit Hacks . | . . Scanalyzer . | . . Garrison Access Hacks . | . . Unauthorized Hacks . | . . Terminals . | . . Fabricators . | . . Repair Stations . | . . Recycling Units . | . . Scanalyzers . | . . Garrison Access . | . . Data Cores Recovered . | . . Used . | . . Hacking Detections 1 | . 1 Full Trace Events . | . . Feedback Events . | . . Feedback Blocked . | . . Robot Schematics Acquired . | . . Robots Built . | . . Authchips . | . . Time . | . . Total Robot Build Rating . | . . Part Schematics Acquired . | . . Parts Built . | . . Authchips . | . . Time . | . . Total Part Build Rating . | . . Parts Repaired . | . . Time . | . . Parts Recycled . | . . Recycled Matter . | . . Retrieved Matter . | . . Retrieved Components . | . . Parts Scanalyzed . | . . Part Schematics Acquired . | . . Parts Damaged . | . . Bothacking | -11 -10 ------------ Run | Yrd Mat Used RIF Installer . | . . Robots Hacked . | . . Non-combat . | . . Combat . | . . Robot Hacks Applied . | . . Relay Couplers Released . | . . Fabnet Peak Effective % . | . . Robots Rewired . | . . Allies Hacked . | . . Hacks Repelled . | . . Allies | -11 -10 -------- Run | Yrd Mat Total Allies . | . . Largest Group . | . . Highest-Rated Group . | . . Highest-Rated Ally . | . . Total Orders . | . . Ally Attacks . | . . Total Damage . | . . Kills . | . . Allies Corrupted . | . . Allies Melted . | . . Intel | -11 -10 ------- Run | Yrd Mat Robot Analysis Total . | . . Derelict Logs Recovered . | . . Drone Launches . | . . Drone Recoveries . | . . Exploration | -11 -10 ------------- Run | Yrd Mat Turns Passed 1690 | 765 925 Spaces Moved 733 | 411 322 Core 17 | 11 6 Treads 638 | 400 238 Legs . | . . Wheels 20 | . 20 Hover 58 | . 58 Flight . | . . Fastest Speed 50 | 50 95 Average Speed 183 | 157 216 Slowest Speed 480 | 160 480 Overloaded Moves . | . . Propulsion Burnouts . | . . Robots Hopped . | . . Cave-ins Triggered . | . . Exploration Rate (%) 30 | 19 41 Regions Visited 1 Branch Regions . Pre-discovered Areas . | . . Known Exits Taken . | . . Unknown Exits Taken 1 | 1 . Scrap Searched . | . . Spaces Dug 12 | 6 6 Terrain Destroyed 43 | 6 37 Melee 2 | . 2 Projectile 12 | 6 6 AOE 29 | . 29 Terrain Rammed . | . . Walls Destroyed . | . . Machines Disabled . | . . Actions | -11 -10 --------- Run | Yrd Mat Total 906 | 467 439 Wait 19 | 2 17 Move 732 | 410 322 Hop . | . . Pick Up 19 | 11 8 Fast Attach 9 | 7 2 Attach 2 | . 2 Detach . | . . Swap 13 | 7 6 Drop 8 | 4 4 Fire 59 | 26 33 Melee 31 | . 31 Ram . | . . Kick . | . . Crush 14 | . 14 Escape Stasis . | . . Rewire . | . . Trap . | . . Miscellaneous . | . . Route ------- -11/Scrapyard -10/Materials (discovered 1 exit: [*Mat]) History --------- Turn | Location | Event 2 | -11/Scrapyard | Met Revision 17 8 | -11/Scrapyard | Discovered new exit (range 16) 766 | -11/Scrapyard | Entered Materials 767 | -10/Materials | Build established: Mutant 1127 | -10/Materials | Discovered new exit (range 16) 1439 | -10/Materials | Core integrity fell below 50% 1650 | -10/Materials | Core integrity fell below 20% 1691 | -10/Materials | Destroyed by G-34 Mercenary with Small Laser Last Messages --------------- 01486_ Acquired 9 matter. 01486_ R-06 Scavenger collects Lgt. Ion Engine. 01488_ Terminal unresponsive. 01489_ R-06 Scavenger collects Datajack. 01616_ K-01 Serf collects debris. 01631_ Ion Engine destroyed. 01639_ Hover Unit destroyed. 01657_ U-05 Engineer destroyed. 01658_ G-34 Mercenary suffers critical hit (Smash). 01658_ G-34 Mercenary destroyed. 01662_ K-01 Serf collects debris. 01666_ Acquired Wheel. 01668_ Acquired 10 matter. 01670_ K-01 Serf collects debris. 01675_ R-06 Scavenger collects Terrain Scan Processor. 01676_ W-16 Scout sends out distress signal. 01677_ K-01 Serf collects debris. 01685_ G-34 Mercenary knocked back. Map ----- +----------------------------------------------------+ | ??#????? ?# ! """"" #????????????????????????????? | | ??????????# """"" #?#??????????????????????????? | | ???? ?????# """"" #????????????????????????????? | | ???? ?????+ ?????? ???????????????????????? | | ?? ???????# * ???????#????????????????????????? | | ??+?? ???? ?? ????#?????????????????????????? | | ????#?#???? % ??????????????????????????????????? | | ??? ???#####+#####???#?##????????????????????????? | | ??? ##?# #?#?????????????????????????????? | | ???????# "" #???#?#?????????????????????????? | | ?? ????# "" #???????????????????????????????? | | ?????#?# "T ! #???????????????????????????????? | | ?? ???## "" """ #####?#?????????????????????????? | | ??? #?## "" """ #????#???#??????????????????????? | | ?? ??## """ ###?????????????????????????????? | | ??##???# ##??????? ??????????????????????? | | #??#?#######+#####???#?? ????????????????????????? | | ########## !#?????#???????????????????????????? | | # #?#??#??#?????????????????????????? | | # ###???????????????????????????????? | | #???????????? ???#????????????????? | | ## ##### ####?#??? ????? #????????????????? | | ## #??### ####?###????????? ??????????????????? | | #?#??# ##?????#??????##a###?????????????????? | | #???## ##??########## ## T ??????????? | | #?#### #??#?# @ g " ??????????? | | ######?#??# ###### ????????? | | ##?#??#???# ## # # w ????????? | | ???????#### ## # t ##### ###### ?????????? | | ???????# ##### #???#######?????#???????????? | | ?????### * # ??? ?? ??#???????????????? | | ######## T # ? ? ????##???????????????? | | % k +? ??? ??#????????????????? | | ######## % ## # ??? ??#?????????????????? | | ??#????######## #???#?#???#?#???????????????? | | ?????##??# # #???????##??????????????????? | | #####??#?# # ####??#?#???????????????????? | | #??#?# + # ###???????????????????????? | | ##??## ^# ==#?##??#?????????????????? | | #??#?# # ==#???????????????????????? | | #???## ""# //#?##?#??????????????????? | | #?#?#????"# /#???#?#?????????????????? | | #??#??????# /##???##???#?????????????? | | ####??????# //##?????????#????????????? | | !##??#??# #####??##???#???????????????? | | !#??##?# #????#?????#????????????????? | | !##????# #?####??#?#?????????????????? | | !#?????#+## #?## ##???????? ????????????? | | !#?#? # #?# #??????????????????????? | | !##?#?"" ??# #######?#????????? ?????????? | +----------------------------------------------------+ Best States ------------- Heat Dissipation 25 Energy Generation 10 Energy Capacity 250 Matter Stores 300 Matter Capacity 300 Sight Range 16 Terrain Scan Range 16 Terrain Scan Density 10 Evasion (%) 41 Recoil Reduction 2 Item Schematics ----------------- None Robot Schematics ------------------ None Fabricated ------------ Nothing Alien Tech Used ----------------- None Achievements -------------- None Challenges ------------ None Game ------ Seed MappingLatentTrap Manual? 0 Play Time 00:42:44 Cumulative 6.1 hours Start 2024.04.12 @ 12:29:20 End 2024.04.12 @ 15:48:04 Sessions 4 Manual Loads 0 Difficulty Rogue Special Mode None Game No. 5 Rogue 5 Adventurer 0 Explorer 0 Win Type - Total 0 Types 0/0/0/0/0/0/0/0/0 Lore% 4 Gallery% 7 Achievement% 5 Wizard Run 0 Options --------- Layout 2 ASCII 1 Keyboard 1 Movement Vi Keybinds 0 Fullscreen 2 Font 40/SmallcapsGlow Map View 50x44 Zoom Use 9% Tactical HUD 1 Map Filters NONE Filters NONE Steam 0 RUN: ee5b7bee-8a11-42ca-b6d7-0d8e77aa1408